Workbook

Sheet RV1106_Board
D1: =UPPER("Bill of Materials") -> BILL OF MATERIALS | J1: Rev:
D2: Cambox_2026 | J2: Production QTY
A3: Customer: | C3: Aithings | D3: HW version: | E3: 5.0 | G3: Checked by: | J3: Date created:
A4: Board code: | C4: CameraBox | D4: Prepared by: | E4: Ducdv | G4: Approved by: | J4: 08/05/2026
A5: STT | B5: Internal Code | C5: Category | D5: Description | E5: Manufacture | F5: Partnumber | G5: Manufacturer 2 | H5: Manufacturer's Part Number 2 | I5: Designator | J5: Quantity | K5: Sluong Board | L5: Sluong cần | M5: Unit | N5: Mounting type | O5: Note | P5: Mrf# | Q5: Mfr. | R5: Order Qty. | S5: Unit Price(USD) | T5: Ext.Price(USD) | U5: LCSC# | V5: Supplier
A6: =ROW(A6)-ROW($A$5) -> 1 | C6: Heat Sinks | D6: HEAT SINK, BGA, 28.5 X 28.5 X 10 | I6: H1 | J6: 1 | K6: 10 | L6: =J6*K6 -> 10 | AA6: 1
A7: 2 | C7: Spacer | D7: SMD SMT ROHS | F7: TH-0.8-0.5-M1.4 | I7: H2 | J7: 1 | K7: 10 | L7: =J7*K7 -> 10 | P7: - | Q7: - | R7: - | S7: - | T7: - | U7: - | V7: - | AA7: 1
A8: 40 | C8: SOM | D8: PCIE-RV1106 PCIE | E8: RONGPIN | F8: PCIE-RV1106 PCIE | I8: SOM | J8: 1 | K8: 10 | L8: 10 | N8: SMD | V8: RONGPIN
A9: 4 | C9: IC | D9: 4Ch HD/SD Analog Video Decoder | E9: CHIPUP | F9: XS9922B | I9: U6 | J9: 1 | K9: 10 | L9: 10 | N9: ASM | P9: - | Q9: - | R9: - | S9: - | T9: - | U9: - | V9: - | AA9: 1
A10: 5 | C10: Capacitor | D10: 100V 2.2uF X7R ±10% 1206 Multilayer Ceramic Capacitors MLCC - SMD/SMT ROHS | E10: CCTC | F10: CCTC TCC1206X7R225K101HT | I10: C1 | J10: 1 | K10: 10 | L10: 10 | N10: SMD | P10: TCC1206X7R225K101HT | Q10: CCTC | R10: 10 | S10: 0.0470 | T10: 0.47 | U10: C7393990 | V10: LCSC | AA10: 1
A11: 6 | C11: Capacitor | D11: 100V 100nF X7R ±10% 1206 Multilayer Ceramic Capacitors MLCC - SMD/SMT ROHS | E11: Yageo | F11: CC1206KKX7R0BB104 | I11: C2, C19 | J11: 2 | K11: 10 | L11: 20 | N11: SMD | P11: CC1206KKX7R0BB104 | Q11: YAGEO | R11: 50 | S11: 0.0094 | T11: 0.47 | U11: C107181 | V11: LCSC | AA11: 1
A12: 7 | C12: Capacitor | D12: 10uF 100V 63mA@120Hz ±20% SMD,D6.3xL5.4mm Aluminum Electrolytic Capacitors - SMD ROHS | E12: ROQANG | F12: RVT2A100M0605 | I12: C3, C21 | J12: 2 | K12: 10 | L12: 20 | N12: SMD | P12: RVT2A100M0605 | Q12: ROQANG | R12: 20 | S12: 0.0234 | T12: 0.47 | U12: C5221839 | V12: LCSC | AA12: C3,C21
A13: 8 | C13: Capacitor | D13: 2.2uF ±10% 6.3V X5R 0603 Multilayer Ceramic Capacitors MLCC - SMD/SMT RoHS | E13: Samsung Electro-Mechanics | F13: CL10A225KQ8NNNC | I13: C4, C154 | J13: 2 | K13: 10 | L13: 20 | N13: SMD | P13: CL10A225KQ8NNNC | Q13: Samsung Electro-Mechanics | R13: 50 | S13: 0.0040 | T13: 0.2 | U13: C71000 | V13: LCSC | AA13: C4
A14: 9 | C14: Capacitor | D14: 16V 100nF X7R ±10% 0402 Multilayer Ceramic Capacitors MLCC - SMD/SMT ROHS | E14: Yageo | F14: CC0402KRX7R7BB104 | I14: C5, C12, C32, C34, C42, C50, C51, C52, C54, C56, C58, C60, C61, C62, C63, C64, C65, C66, C67, C68, C69, C72, C73, C74, C75, C76, C77, C78, C79, C80, C82, C84, C86, C87, C88, C89, C91, C93, C94, C96, C97, C98, C99, C100, C103, C104, C105, C108, C111, C113, C116, C118, C119, C120, C121, C124, C125, C126, C127, C128, C129, C130, C131, C135, C137, C144, C145, C148, C160, C168, C171, C172, C173, C178, C186, C189, C191, C192, C197 | J14: 79 | K14: 10 | L14: 790 | N14: SMD | P14: CC0402KRX7R7BB104 | Q14: YAGEO | R14: 800 | S14: 0.0006 | T14: 0.48 | U14: C60474 | V14: LCSC | AA14: C32,C191,C12,C34,C171,C104,C105,C192,C197,C5,58,56,60,61,62,72,73,74,75,76,77,79,82,
A15: 10 | C15: Capacitor | D15: CAP CER 10uF 16V X5R 0805 | E15: Hottech | F15: C0805X5R106K160NT | I15: C6, C8, C31, C55, C70, C71, C81, C83, C85, C90, C92, C95, C101, C107, C110, C112, C115, C117, C122, C123, C132, C136, C155, C185, C188, C190 | J15: 26 | K15: 10 | L15: 260 | N15: SMD | P15: 0805X5R106K160NT | Q15: AIDE CAPACITOR | R15: 300 | S15: - | T15: 4.56 | U15: - | V15: LCSC | AA15: C31,C190,C8,C6
A16: 11 | C16: Capacitor | D16: NP0 33pF 50V ±5% 0603 Multilayer Ceramic Capacitors MLCC - SMD/SMT ROHS | E16: Yageo | F16: CC0603JRNPO9BN330 | I16: C7 | J16: 1 | K16: 10 | L16: 10 | N16: SMD | P16: CC0603JRNPO9BN330 | Q16: YAGEO | R16: 100 | S16: 0.0015 | T16: 0.15 | U16: C107047 | V16: LCSC | AA16: 1
A17: 12 | C17: Capacitor | D17: 50V 100nF X7R ±10% 0603 Multilayer Ceramic Capacitors MLCC - SMD/SMT ROHS | E17: Yageo | F17: CC0603KRX7R9BB104 | I17: C9, C22, C25, C36, C102, C106, C156, C158, C174, C175, C176, C193, C194, C195 | J17: 14 | K17: 10 | L17: 140 | N17: SMD | P17: CC0603KRX7R9BB104 | Q17: YAGEO | R17: 200 | S17: 0.0014 | T17: 0.28 | U17: C14663 | V17: LCSC | AA17: C9,C25, C106, c193,c174,c194,c195, c175,C22
A18: 13 | C18: Capacitor | D18: 10uF 50V Ceramic Capacitor X7R 1210 | E18: SAMWHA | F18: CS3225X7R106K500NRL | I18: C10, C18, C28, C30, C38, C16, C35, C45 | J18: 8 | K18: 10 | L18: 80 | N18: SMD | P18: CS3225X7R106K500NRL | Q18: SAMWHA | R18: 80 | S18: 0.0466 | T18: 3.73 | U18: C2918502 | V18: LCSC | AA18: c10,c28,c30,C38
A19: 14 | C19: Capacitor | D19: 680pF ±10% 50V Ceramic Capacitor X7R 0402 | E19: FOJAN, SAMWHA | F19: FCC0402B681K500AT | I19: C11 | J19: 1 | K19: 10 | L19: 10 | N19: SMD | P19: FCC0402B681K500AT | Q19: FOJAN | R19: 100 | S19: 0.0005 | T19: 0.05 | U19: C5137577 | V19: LCSC | AA19: 1
A20: 15 | C20: Capacitor | D20: 470uF ±20% 16V Aluminum Electrolytic Capacitors 2000hrs@105℃ | E20: ROQANG | F20: RVT1C471M0810 | I20: C13 | J20: 1 | K20: 10 | L20: 10 | N20: SMD | P20: RVT1C471M0810 | Q20: ROQANG | R20: 10 | S20: 0.0515 | T20: 0.52 | U20: C72517 | V20: LCSC | AA20: 1
A21: 16 | C21: Capacitor | D21: 8.2nF ±10% 50V Ceramic Capacitor X7R 0402 | E21: Yageo | F21: CC0402KRX7R9BB822 | I21: C14 | J21: 1 | K21: 10 | L21: 10 | N21: SMD | P21: CC0402KRX7R9BB822 | Q21: YAGEO | R21: 100 | S21: 0.0001 | T21: 0.01 | U21: C107032 | V21: LCSC | AA21: 1
A22: 17 | C22: Capacitor | D22: CAP CER 1UF 50V X5R 0603 | E22: Hottech | F22: C0603X5R105K500NT | I22: C15, C48, C49, C57, C59, C139, C170 | J22: 7 | K22: 10 | L22: 70 | N22: SMD | P22: 0603X5R105K500NT | Q22: AIDE CAPACITOR | R22: 100 | S22: - | T22: 0.72 | U22: - | V22: LCSC | AA22: C15
A23: 18 | C23: Capacitor | D23: 22pF ±5% 50V Ceramic Capacitor NP0 0402 | E23: Yageo | F23: CC0402JRNPO9BN220 | I23: C17, C29,C37 | J23: 3 | K23: 10 | L23: 30 | N23: SMD | P23: CC0402JRNPO9BN220 | Q23: YAGEO | R23: 100 | S23: 0.0006 | T23: 0.06 | U23: C106203 | V23: LCSC | AA23: 1
A24: 19 | C24: Capacitor | D24: 16V 47uF X5R ±20% 1206 Multilayer Ceramic Capacitors MLCC - SMD/SMT ROHS | E24: Taiyo Yuden | F24: EMK316BBJ476ML-T | I24: C20, C179 | J24: 2 | K24: 10 | L24: 20 | N24: SMD | P24: EMK316BBJ476ML-T | Q24: Taiyo Yuden | R24: 20 | S24: 0.0749 | T24: 1.5 | U24: C385907 | V24: LCSC | AA24: C179,C20
A25: 20 | C25: Capacitor | D25: 50V 470nF X7R ±10% 0603 Multilayer Ceramic Capacitors MLCC - SMD/SMT ROHS | E25: Yageo | F25: CC0603KRX7R9BB474 | I25: C23 | J25: 1 | K25: 10 | L25: 10 | N25: SMD | P25: CC0603KRX7R9BB474 | Q25: YAGEO | R25: 50 | S25: 0.0065 | T25: 0.33 | U25: C513577 | V25: LCSC | AA25: 1
A26: 21 | C26: Capacitor | D26: 560 pF ±10% 50V Ceramic Capacitor X7R 0603 (1608 Metric) | E26: Yageo | F26: CC0603KRX7R9BB561 | I26: C24 | J26: 1 | K26: 10 | L26: 10 | N26: SMD | P26: CC0603KRX7R9BB561 | Q26: YAGEO | R26: 100 | S26: 0.0015 | T26: 0.15 | U26: C107094 | V26: LCSC | AA26: 1
A27: 22 | C27: Capacitor | D27: 50V 75pF NP0 ±5% 0603 Multilayer Ceramic Capacitors MLCC - SMD/SMT ROHS | E27: Yageo | F27: CC0603JRNPO9BN750 | I27: C26 | J27: 1 | K27: 10 | L27: 10 | N27: SMD | P27: CC0603JRNPO9BN750 | Q27: YAGEO | R27: 100 | S27: 0.0015 | T27: 0.15 | U27: C282074 | V27: LCSC | AA27: 1
A28: 23 | C28: Capacitor | D28: 50V 56nF X7R ±10% 0603 Multilayer Ceramic Capacitors MLCC - SMD/SMT ROHS | E28: Yageo | F28: CC0603KRX7R9BB563 | I28: C27 | J28: 1 | K28: 10 | L28: 10 | N28: SMD | P28: CC0603KRX7R9BB563 | Q28: YAGEO | R28: 100 | S28: 0.0015 | T28: 0.15 | U28: C282072 | V28: LCSC | AA28: 1
A29: 24 | C29: Capacitor | D29: CAP CER 100PF 50V X7R 0603 | E29: YAGEO | F29: CC0603KRX7R9BB101 | I29: C39 | J29: 1 | K29: 10 | L29: 10 | N29: SMD | P29: - | Q29: - | R29: 100 | S29: - | T29: 0.28 | U29: - | V29: LCSC | AA29: 1
A30: 25 | C30: Capacitor | D30: 100uF 50V 146mA@120Hz ±20% SMD,D8xL10.2mm Aluminum Electrolytic Capacitors - SMD ROHS | E30: ROQANG | F30: RT1H101M0810 | I30: C40 | J30: 1 | K30: 10 | L30: 10 | N30: SMD | P30: RT1H101M0810 | Q30: ROQANG | R30: 10 | S30: 0.0523 | T30: 0.52 | U30: C280404 | V30: LCSC | AA30: 1
A31: 26 | C31: Capacitor | D31: CAP CER 10uF 50V X5R 1206 | E31: YAGEO | F31: CC1206KKX5R9BB106 | I31: C41 | J31: 1 | K31: 10 | L31: 10 | N31: SMD | P31: - | Q31: - | R31: 10 | S31: - | T31: 0.66 | U31: - | V31: LCSC | AA31: 1
A32: 27 | C32: Capacitor | D32: 50V 100pF NP0 ±1% 0402 Multilayer Ceramic Capacitors MLCC - SMD/SMT ROHS | E32: Yageo | F32: CC0402FRNPO9BN101 | I32: C44, C133, C143, C161, C162, C166, C167, C169 | J32: 8 | K32: 10 | L32: 80 | N32: SMD | P32: CC0402FRNPO9BN101 | Q32: YAGEO | R32: 100 | S32: 0.0016 | T32: 0.16 | U32: C327198 | V32: LCSC
A33: 28 | C33: Capacitor | D33: C0G 33pF 50V ±5% 0402 Multilayer Ceramic Capacitors MLCC - SMD/SMT ROHS | E33: Samsung Electro-Mechanics | F33: CL05C330JB5NNNC | I33: C46, C47, C149, C150, C151, C159 | J33: 6 | K33: 10 | L33: 60 | N33: SMD | P33: CL05C330JB5NNNC | Q33: Samsung Electro-Mechanics | R33: 100 | S33: 0.0017 | T33: 0.17 | U33: C70465 | V33: LCSC
A34: 29 | C34: Capacitor | D34: CAP CER 22UF 6.3V X5R 0603 | E34: Samsung Electro-Mechanics | F34: CL10A226MQ8NRNE | I34: C53 | J34: 1 | K34: 10 | L34: 10 | N34: SMD | P34: CL10A226MQ8NRNE | Q34: Samsung Electro-Mechanics | R34: 20 | S34: 0.0068 | T34: 0.14 | U34: C159801 | V34: LCSC
A35: 30 | C35: Capacitor | D35: 100uF ±20% 16V Ceramic Capacitor X5R 1210 | E35: Taiyo Yuden | F35: EMK325ABJ107MM-T | I35: C140, C146 | J35: 2 | K35: 10 | L35: 20 | N35: SMD | P35: EMK325ABJ107MM-T | Q35: Taiyo Yuden | R35: 20 | S35: 0.2769 | T35: 5.54 | U35: C394395 | V35: LCSC
A36: 31 | C36: Capacitor | D36: 50V 33pF C0G ±5% 0805 Multilayer Ceramic Capacitors MLCC - SMD/SMT ROHS | E36: FH(Guangdong Fenghua Advanced Tech) | F36: 0805CG330J500NT | I36: C141 | J36: 1 | K36: 10 | L36: 10 | N36: SMD | P36: 0805CG330J500NT | Q36: FH | R36: 100 | S36: 0.0025 | T36: 0.25 | U36: C157687 | V36: LCSC
A37: 32 | C37: Capacitor | D37: 50V 10pF C0G ±5% 0805 Multilayer Ceramic Capacitors MLCC - SMD/SMT ROHS | E37: PSA(Prosperity Dielectrics) | F37: FN21N100J500PAG | I37: C142 | J37: 1 | K37: 10 | L37: 10 | N37: SMD | P37: FN21N100J500PAG | Q37: PSA | R37: 100 | S37: 0.0035 | T37: 0.35 | U37: C525280 | V37: LCSC
A38: 33 | C38: Capacitor | D38: 4.7uF 35V ±10% 0603 Multilayer Ceramic Capacitors MLCC - SMD/SMT ROHS | E38: AIDE CAPACITOR | F38: C0603X5R475K350NT | I38: C157 | J38: 1 | K38: 10 | L38: 10 | N38: SMD | P38: - | Q38: - | R38: 20 | S38: - | T38: 0.62 | U38: - | V38: LCSC
A39: 34 | C39: Capacitor | D39: CAP CER 0.1UF 50V X7R 0603 | E39: AIDE CAPACITOR | F39: C0603X7R104K500NT | I39: C165 | J39: 1 | K39: 10 | L39: 10 | N39: SMD | P39: - | Q39: - | R39: 100 | S39: - | T39: 0.25 | U39: - | V39: LCSC
A40: 35 | C40: Capacitor | D40: CAP CER 4.7UF 6.3V X5R 0603 | E40: AIDE CAPACITOR | F40: C0603X5R475K6R3NT | I40: C196 | J40: 1 | K40: 10 | L40: 10 | N40: SMD | P40: - | Q40: - | R40: 100 | S40: - | T40: 0.63 | U40: - | V40: LCSC | AA40: 1
A41: 36 | C41: Connector | D41: 1 Inner pin IPEX Board-End 1.25mm -40℃~+90℃ 3GHz 50Ω 2mm SMD Coaxial Connectors (RF) ROHS | E41: Shenzhen Kinghelm Elec | F41: KH-IPEX-K501-29 | I41: J5, J7, J9 | J41: 3 | K41: 10 | L41: 30 | N41: SMD | P41: KH-IPEX-K501-29 | Q41: kinghelm | R41: 30 | S41: 0.0407 | T41: 1.22 | U41: C411563 | V41: LCSC | AA41: J5, J7, J9
A42: 37 | C42: Connector | D42: NANO SIM+TF /NANO SIM*2 | E42: MUP | F42: M6110-01 & M6110-31 | I42: J6 | J42: 1 | K42: 10 | L42: 10 | N42: SMD | O42: Khe cắm và tray Sim | AA42: 1
A43: 38 | C43: Connector | D43: Card Connector NANO SIM Hinged Lid Surface Mount | F43: C7802-02 | I43: J23 | J43: 1 | K43: 10 | L43: 10 | N43: SMD | P43: C7802-02 | Q43: MUP | R43: 10 | S43: 0.2735 | T43: 2.74 | U43: C20624830 | V43: LCSC | AA43: 1
A44: 39 | C44: Connector | D44: 67P Surface Mount, Right Angle SMD,P=0.5mm,Surface Mount,Right Angle Centronics Connectors RoHS | E44: FOXCONN | F44: AS0BC21-S40BM-7H | I44: J28 | J44: 1 | K44: 10 | L44: 10 | N44: SMD | P44: AS0BC21-S40BM-7H | Q44: FOXCONN | R44: 10 | S44: 0.3786 | T44: 3.79 | U44: C410528 | V44: LCSC | AA44: 1
A45: 40 | C45: Crystal | D45: Crystal 27MHz 10ppm 20pF 60Ω SMD2016-4P | E45: MDH | F45: 2.D.1.270002002 | I45: X1 | J45: 1 | K45: 10 | L45: 10 | N45: SMD | P45: 2.D.1.270002002 | Q45: MDH | R45: 10 | S45: 0.0479 | T45: 0.48 | U45: C42420963 | V45: LCSC | AA45: 1
A46: 41 | C46: Diode | D46: DFN1006-2 TVS Diodes ROHS | E46: Leiditech | F46: LM-AZ6118-01F | I46: D2, D4, D42, D43 | J46: 4 | K46: 10 | L46: 40 | N46: SMD | P46: LM-AZ6118-01F | Q46: Leiditech | R46: 40 | S46: 0.0538 | T46: 2.15 | U46: C49332775 | V46: LCSC | AA46: D2,D4
A47: 42 | C47: Diode | D47: 275A 1 Independent 60V 620mV@7A 7A Power-DI-5 Single Diodes RoHS | E47: DIODES | F47: PDS760-13 | I47: D3 | J47: 1 | K47: 10 | L47: 10 | N47: SMD | P47: PDS760-13 | Q47: DIODES | R47: 10 | S47: 0.3164 | T47: 3.16 | U47: C96113 | V47: LCSC | AA47: 1
A48: 43 | C48: Diode | D48: Unidirectional 5V (Max) 6.2V 18.6V 9.4A SOD-523 TVS RoHs | E48: Tak cheong | F48: ESD5Z5V0 | I48: D5, D19, D30 | J48: 3 | K48: 10 | L48: 30 | N48: SMD | P48: ESD5Z5V0 | Q48: MDD(Microdiode Semiconductor) | R48: 50 | S48: 0.0098 | T48: 0.49 | U48: C502546 | V48: LCSC
A49: 44 | C49: Diode | D49: 40V Independent 500mV@3A 3A SMA(DO-214AC) Schottky Diodes ROHS | E49: Guangdong Hottech | F49: SS34A | I49: D6 | J49: 1 | K49: 10 | L49: 10 | N49: SMD | P49: SS34A | Q49: Guangdong Hottech | R49: 20 | S49: 0.0246 | T49: 0.49 | U49: C2886580 | V49: LCSC | AA49: 1
A50: 45 | C50: Diode | D50: 3A@8/20us 23V 70W@8/20us 6V 5V DFN1006-2L TVS Diodes RoHS | E50: Wayon | F50: WE05DGCF-B | I50: D7, D35 | J50: 2 | K50: 10 | L50: 20 | N50: SMD | P50: WE05DGCF-B | Q50: Wayon | R50: 20 | S50: 0.0190 | T50: 0.38 | U50: C3039401 | V50: LCSC
A51: 46 | C51: Diode | D51: DIODE ZENER 5.1V 500MW SOD123 | E51: Diodes Incorporated | F51: MMSZ5231B-7-F | I51: D8 | J51: 1 | K51: 10 | L51: 10 | N51: SMD | P51: MMSZ5231B-7-F | Q51: DIODES | R51: 20 | S51: 0.0179 | T51: 0.36 | U51: C85181 | V51: LCSC | AA51: 1
A52: 47 | C52: Diode | D52: 0402 Varistors ROHS | E52: TDK | F52: B72590D50H160 | I52: D9, D10, D12, D13, D23, D24, D25, D26, D27, D28, D29 | J52: 11 | K52: 10 | L52: 110 | N52: SMD | P52: B72590D50H160 | Q52: TDK | R52: 120 | S52: 0.0165 | T52: 1.98 | U52: C2842343 | V52: LCSC
A53: 48 | C53: Diode | D53: DIODE GEN PURP 1KV 1A SMA | E53: TDSEMIC | F53: 1N4007 M7 | I53: D20, D47, D48 | J53: 3 | K53: 10 | L53: 30 | N53: SMD | P53: - | Q53: - | R53: 100 | S53: - | T53: 0.75 | U53: - | V53: LCSC | AA53: D20
A54: 49 | C54: Diode | D54: 43.6A 9.2V 400W 6.4V Unidirectional 5V SOD-123 TVS Diodes RoHS | E54: FUXINSEMI | F54: PTVS5V0S1UR | I54: D39, D40, D41, D44, D45 | J54: 5 | K54: 10 | L54: 50 | N54: SMD | P54: PTVS5V0S1UR-MS | Q54: MSKSEMI | R54: 50 | S54: 0.0546 | T54: 2.73 | U54: C30602439 | V54: LCSC
A55: 50 | C55: Diode | D55: Independent Type 10A 1.1V@10A 1kV SMC(DO-214AB) Diodes - General Purpose ROHS | E55: GOODWORK | F55: S10M | I55: D52 | J55: 1 | K55: 10 | L55: 10 | N55: SMD | P55: S10M | Q55: GOODWORK | R55: 10 | S55: 0.0409 | T55: 0.41 | U55: C2922192 | V55: LCSC | AA55: 1
A56: 51 | C56: Diode | D56: Unidirectional 36V 40V 58.1V 3.4A SOD-123FL TVS RoHS | E56: MDD(Microdiode Semiconductor) | F56: SMF36A | I56: D53 | J56: 1 | K56: 10 | L56: 10 | N56: SMD | P56: SMF36A | Q56: MDD(Microdiode Semiconductor) | R56: 20 | S56: 0.0129 | T56: 0.26 | U56: C840751 | V56: LCSC | AA56: 1
A57: 52 | C57: Diode | D57: DIODE SCHOTTKY 60V 3A SMAF | E57: HY | F57: SS36F | I57: D54, D55 | J57: 2 | K57: 10 | L57: 20 | N57: SMD | P57: SS36F | Q57: R+O | R57: 20 | S57: 0.0218 | T57: 0.44 | U57: C41411779 | V57: LCSC
A58: 53 | C58: Ferrite Bead | D58: 10mΩ ±25% 10Ω@100MHz 0603 Ferrite Beads and Chips RoHS | E58: YJYCOIN | F58: YI160808U100-5R0T | I58: E1, E2, E3, E4, E5, E16, E22, E29, E30, E31, E32 | J58: 11 | K58: 10 | L58: 110 | N58: SMD | P58: YI160808U100-5R0T | Q58: YJYCOIN | R58: 120 | S58: 0.0156 | T58: 1.87 | U58: C2971881 | V58: LCSC | AA58: E1,E30,E2,E22,e4,e29,e5,e32,e31,e3
A59: 54 | C59: Ferrite Bead | D59: FERRITE BEAD 1 KOHM 0805 1.5A | E59: Sunlord | F59: UPZ2012E102-1R5TF | I59: E6, E15, E26, E27, E28, E33 | J59: 6 | K59: 10 | L59: 60 | N59: SMD | P59: XRCB2012U801-1R5TF | Q59: XR | R59: 100 | S59: 0.0085 | T59: 0.85 | U59: C41384122 | V59: LCSC | AA59: E6,E33
A60: 55 | C60: Ferrite Bead | D60: 60Ω@100MHz 1 Line Ferrite Bead 0402 600mA 150mΩ | E60: FH | F60: CBW100505U600T | I60: E7, E8, E9, E10, E11, E12, E13, E14, E17, E18, E19, E20, E21 | J60: 13 | K60: 10 | L60: 130 | N60: SMD | P60: CBW100505U600T | Q60: FH | R60: 200 | S60: 0.0019 | T60: 0.38 | U60: C316432 | V60: LCSC
A61: 56 | C61: IC | D61: 2.5MHz Buck Adjustable 800mV~28V 5A SOIC-8-EP Voltage Regulators - DC DC Switching Regulators RoHS | E61: TI | F61: LMR14050SDDAR | I61: U1 | J61: 1 | K61: 10 | L61: 10 | N61: SMD | P61: LMR14050SDDAR | Q61: TI | R61: 10 | S61: 0.3313 | T61: 3.31 | U61: C155484 | V61: LCSC | AA61: 1
A62: 57 | C62: IC | D62: Buck 1MHz Adjustable 600mV~7.3V 3A SOT23-5 Voltage Regulators - DC DC Switching Regulators RoHS | E62: etasolution | F62: ETA3409S2F | I62: U2, U4, U7 | J62: 3 | K62: 10 | L62: 30 | N62: SMD | P62: ETA3409S2F | Q62: etasolution | R62: 30 | S62: 0.0679 | T62: 2.04 | U62: C7465553 | V62: LCSC | AA62: U2,U7,U4
A63: 58 | C63: IC | D63: 1 Boost VSSOP-10-0.5mm DC DC Switching Controllers RoHS | E63: Texas Instruments | F63: LM3481MMX/NOPB | I63: U3 | J63: 1 | K63: 10 | L63: 10 | N63: SMD | P63: LM3481MMX/NOPB | Q63: TI | R63: 10 | S63: 0.4265 | T63: 4.27 | U63: C543002 | V63: LCSC | AA63: 1
A64: 59 | C64: IC | D64: 500mA, low IQ, high precision, adjustable ultra-low dropout voltage regulator with enable function | E64: TI | F64: TLV75801PDBVR | I64: U5, U8, U9, U10 | J64: 4 | K64: 10 | L64: 40 | N64: SMD | P64: TLV75801PDBVR | Q64: TI | R64: 40 | S64: 0.0515 | T64: 2.06 | U64: C2877852 | V64: LCSC | AA64: U5,U8,U9,U10
A65: 60 | C65: IC | D65: IC DRVR/RCVR MULTCH RS232 16SOIC | E65: Texas Instruments | F65: MAX3232CDR | I65: U11, U14, U15 | J65: 3 | K65: 10 | L65: 30 | N65: SMD | P65: MAX3232CDR | Q65: TI | R65: 30 | S65: 0.2953 | T65: 8.86 | U65: C45843 | V65: LCSC | AA65: U11, U14, U15
A66: =ROW(A66)-ROW($A$5) -> 61 | C66: IC | D66: LTE CAT 1 module, 4G + (GNSS) | E66: SIMCOM | F66: A7677S | I66: U12 | J66: 1 | K66: 10 | L66: 10 | N66: SMD | P66: - | Q66: - | R66: - | S66: - | T66: - | U66: - | V66: LCSC | AA66: 1
A67: 62 | C67: IC | D67: SOT-363-6 ESD and Surge Protection (TVS/ESD) ROHS | E67: TECH PUBLIC | F67: SMF05CT1G-P | I67: U18 | J67: 1 | K67: 10 | L67: 10 | N67: SMD | P67: SMF05CT1G-P | Q67: TECH PUBLIC | R67: 10 | S67: 0.0450 | T67: 0.45 | U67: C2841837 | V67: LCSC | AA67: 1
A68: 63 | C68: IC | D68: SOT-26 ESD and Surge Protection (TVS/ESD) ROHS | E68: Leiditech | F68: SR05-04A | I68: U19 | J68: 1 | K68: 10 | L68: 10 | N68: SMD | P68: SR05-04A | Q68: Leiditech | R68: 10 | S68: 0.0613 | T68: 0.61 | U68: C5289075 | V68: LCSC | AA68: 1
A69: 64 | C69: IC | D69: 2mV 25nA Dual channel SOIC-8 Comparators ROHS | E69: Texas Instruments | F69: LM393DR | I69: U21 | J69: 1 | K69: 10 | L69: 10 | N69: SMD | P69: LM393DR | Q69: TI | R69: 10 | S69: 0.0554 | T69: 0.55 | U69: C67470 | V69: LCSC | AA69: 1
A70: 65 | C70: IC | D70: Costoptimized high performance RX microcontroller with enhanced touch key function and 5V operation support. | E70: Renesas Electronics | F70: R5F51303ADFM | I70: U23 | J70: 1 | K70: 10 | L70: 10 | N70: SMD | P70: R5F51303ADFM#10 | Q70: RENESAS | R70: 10 | S70: 2.1177 | T70: 21.18 | U70: C1018315 | V70: LCSC | AA70: 1
A71: 66 | C71: Inductor | D71: 8A 2.2uH ±20% 8.8A 12.5mΩ SMD,7x6.6mm Fixed Inductors RoHS | E71: zoomdo electronics | F71: ZD0650-2R2M | I71: L1 | J71: 1 | K71: 10 | L71: =J71*K71 -> 10 | N71: SMD | P71: ZD0650-2R2M | Q71: zoomdo electronics | R71: 10 | S71: 0.0902 | T71: 0.9 | U71: C48031454 | V71: LCSC | AA71: 1
A72: 67 | C72: Inductor | D72: 6A 6.8uH ±20% 39mΩ 10A SMD,7.1x6.6mm Fixed Inductors RoHS | E72: PROD Tech | F72: PSPMAA0605H-6R8M-ANP | I72: L2 | J72: 1 | K72: 10 | L72: 10 | N72: SMD | P72: PSPMAA0605H-6R8M-ANP | Q72: PROD Tech | R72: 10 | S72: 0.1533 | T72: 1.53 | U72: C2983091 | V72: LCSC | AA72: 1
A73: 68 | C73: Inductor | D73: 3.3A 22uH ±20% 7A SMD,12.2x12.2mm Arrays, Signal Transformers RoHS | E73: Sumida | F73: CDRCH12D78BNP-220MC | I73: L3 | J73: 1 | K73: 10 | L73: 10 | N73: SMD | P73: CDRCH12D78BNP-220MC | Q73: Sumida | R73: 10 | S73: 0.6454 | T73: 6.45 | U73: C2682501 | V73: LCSC | AA73: 1
A74: 69 | C74: Inductor | D74: 3.2A 2.2uH 5.8A 34mΩ ±20% SMD,4x4mm Fixed Inductors RoHS | E74: ZE | F74: ZNR3015ST2R2M | I74: L4, L5, L6 | J74: 3 | K74: 10 | L74: 30 | N74: SMD | P74: ZNR3015ST2R2M | Q74: ZE | R74: 30 | S74: 0.0246 | T74: 0.74 | U74: C42429102 | V74: LCSC | AA74: L4,L5,L6
A75: 70 | C75: Inductor | D75: 2A 2.2uH Magnetic Shielded Inductor ±20% 2A 60mΩ SMD,3x3mm Fixed Inductors RoHS | E75: ZE | F75: ZNR3015ST2R2M | I75: L7 | J75: 1 | K75: 10 | L75: 10 | N75: SMD | P75: ZNR3015ST2R2M | Q75: ZE | R75: 10 | S75: 0.0334 | T75: 0.33 | U75: C42429102 | V75: LCSC
A76: 71 | C76: Inductor | D76: 700mA 47nH 160mΩ ±5% 0402 Fixed Inductors RoHS | F76: VHF100505HQ47NJT | I76: L8 | J76: 1 | K76: 10 | L76: 10 | N76: SMD | P76: VHF100505HQ47NJT | Q76: FH | R76: 100 | S76: 0.0018 | T76: 0.18 | U76: C395068 | V76: LCSC
A77: 72 | C77: Inductor | D77: 180mA 68nH ±5% 1.4Ω 0402 Fixed Inductors RoHS | E77: FH | F77: VHF100505HQ68NJT | I77: L9 | J77: 1 | K77: 10 | L77: 10 | N77: SMD | P77: VHF100505HQ68NJT | Q77: FH | R77: 100 | S77: 0.0021 | T77: 0.21 | U77: C391307 | V77: LCSC
A78: 73 | C78: Inductor | D78: 90Ω@100MHz 5Ω 2 SMD-4P,0.8x0.6mm Common Mode Filters ROHS | E78: Murata Electronics | F78: DLM0NSN900HY2D | I78: L10 | J78: 1 | K78: 10 | L78: 10 | N78: SMD | P78: DLM0NSN900HY2D | Q78: muRata | R78: 20 | S78: 0.0203 | T78: 0.41 | U78: C882594 | V78: LCSC
A79: 74 | C79: LED | D79: 20mA 180mcd Colorless Transparent Lens 565nm~575nm -20℃~+85℃ Positive Stick Yellow-green 120° 50mW 2.4V 0603 LED Indication - Discrete ROH | E79: XINGLIGHT | F79: XL-1608SYGC-04 | I79: D1, D21, D32, D36, D56 | J79: 5 | K79: 10 | L79: 50 | N79: SMD | P79: XL-1608SYGC-04 | Q79: XINGLIGHT | R79: 50 | S79: 0.0055 | T79: 0.28 | U79: C965806 | V79: LCSC | AA79: D1
A80: 75 | C80: LED | D80: 20mA 225mcd Colorless Transparent Lens -20℃~+85℃ Positive Stick 620nm~630nm Red 120° 50mW 2.3V 0603 LED Indication - Discrete ROH | E80: XINGLIGHT | F80: XL-1608SURC-06 | I80: D22, D33 | J80: 2 | K80: 10 | L80: 20 | N80: SMD | P80: XL-1608SURC-06 | Q80: XINGLIGHT | R80: 100 | S80: 0.0019 | T80: 0.19 | U80: C965799 | V80: LCSC
A81: 76 | C81: LED | D81: LED YELLOW CLEAR 0603 SMD | E81: XINGLIGHT | F81: XL-1608UYC-06 | G81: Wurth Electronics Inc, | H81: 150060YS75000 | I81: D31 | J81: 1 | K81: 10 | L81: 10 | N81: SMD | P81: - | Q81: - | R81: 100 | S81: - | T81: 0.7 | U81: - | V81: LCSC
A82: 77 | C82: IC | D82: GNSS Module with GPS, GLONASS, BDS, Galileo, QZSS, High Sensitivity, Low Power Consumption | E82: SIMCom Wireless Solutions | F82: SIM65M-C | I82: M2 | J82: 1 | K82: 10 | L82: 10 | N82: SMD | P82: SIM65M | Q82: SIMCom Wireless Solutions | R82: 10 | S82: 4.7363 | T82: 47.36 | U82: C7495025 | V82: LCSC | AA82: 1
A83: 78 | C83: IC | D83: 2.5A, 3MHz Switching Charger with Dynamic Power Path Management | E83: etasolution | F83: ETA6003Q3Q | I83: U22 | J83: 1 | K83: 10 | L83: 10 | N83: SMD | P83: ETA6003Q3Q | Q83: etasolution | R83: 10 | S83: 0.2805 | T83: 2.81 | U83: C5455585 | V83: LCSC | AA83: 1
A84: 79 | C84: MOSFET | D84: N-Channel 30V 0.1A 0.35W Surface Mount SOT-23 | E84: JSCJ | F84: 2SK3018 | I84: Q1, Q2, Q5, Q6, Q7, Q8, Q9, Q10, Q11, Q42 | J84: 10 | K84: 10 | L84: 100 | N84: SMD | P84: 2SK3018 | Q84: JSCJ | R84: 100 | S84: 0.0125 | T84: 1.25 | U84: C194460 | V84: LCSC | AA84: Q5,Q6,Q7,Q8,Q9,Q10,Q11,Q1,Q2,Q42
A85: 80 | C85: MOSFET | D85: 100V 15A 49mΩ@10V,5A 2.8W 3.2V 1 N-Channel VSONP-8(3.1x3.1) MOSFETs ROHS | E85: Texas Instruments | F85: CSD19538Q3A | I85: Q3 | J85: 1 | K85: 10 | L85: 10 | N85: SMD | P85: CSD19538Q3A | Q85: TI | R85: 10 | S85: 0.2658 | T85: 2.66 | U85: C478471 | V85: LCSC | AA85: 1
A86: 81 | C86: MOSFET | D86: MOSFET P-CH 30V 4.2A SOT-23 | E86: ASDsemi | F86: ASDM3401ZA-R | I86: Q13 | J86: 1 | K86: 10 | L86: 10 | N86: SMD | P86: ASDM3401ZA-R | Q86: ASDsemi | R86: 10 | S86: 0.0380 | T86: 0.38 | U86: C2758233 | V86: LCSC | AA86: 1
A87: 82 | C87: MOSFET | D87: SOT-23-3 MOSFETs P-Chanel ROHS | E87: TECH PUBLIC | F87: SI2333CDS | I87: Q20, Q35, Q36 | J87: 3 | K87: 10 | L87: 30 | N87: SMD | P87: SI2333CDS | Q87: TECH PUBLIC | R87: 30 | S87: 0.0713 | T87: 2.14 | U87: C5122040 | V87: LCSC
A88: 83 | C88: MOSFET | D88: 50V 200mA 225mW 5.6Ω@2.75V,200mA 500mV 1 N-channel SOT-23 MOSFETs ROHS | E88: LRC | F88: LBSS139LT1G | I88: Q22 | J88: 1 | K88: 10 | L88: 10 | N88: SMD | P88: LBSS139LT1G | Q88: LRC | R88: 50 | S88: 0.0133 | T88: 0.67 | U88: C383203 | V88: LCSC
A89: 84 | C89: Resistor | D89: RES SMD 1 OHM 1% 1/10W 0603 | E89: YAGEO | F89: RC0603FR-071RL | I89: R1 | J89: 1 | K89: 10 | L89: 10 | N89: SMD | P89: - | Q89: - | R89: 100 | S89: - | T89: 0.38 | U89: - | V89: LCSC | AA89: 1
A90: 85 | C90: Resistor | D90: 62.5mW Thick Film Resistor 50V ±100ppm/℃ ±1% 100kΩ 0402 Chip Resistor - Surface Mount ROHS | E90: Yageo | F90: RC0402FR-07100KL | I90: R2, R27, R40, R44, R46, R114, R238, R240, R242 | J90: 9 | K90: 10 | L90: 90 | N90: SMD | P90: RC0402FR-07100KL | Q90: YAGEO | R90: 100 | S90: 0.0004 | T90: 0.04 | U90: C60491 | V90: LCSC | AA90: R27,R2
A91: 86 | C91: Resistor | D91: 62.5mW 118kΩ 50V Thick Film Resistor ±100ppm/℃ ±0.5% 0402 Chip Resistor - Surface Mount RoHS | E91: Yageo | F91: RC0402DR-07118KL | I91: R3 | J91: 1 | K91: 10 | L91: 10 | N91: SMD | P91: RC0402DR-07118KL | Q91: YAGEO | R91: 100 | S91: 0.0029 | T91: 0.29 | U91: C723573 | V91: LCSC | AA91: 1
A92: 87 | C92: Resistor | D92: 62.5mW Thick Film Resistor 50V ±100ppm/℃ ±1% 68kΩ 0402 Chip Resistor - Surface Mount ROHS | E92: Yageo | F92: RC0402FR-0768KL | I92: R4 | J92: 1 | K92: 10 | L92: 10 | N92: SMD | P92: RC0402FR-0768KL | Q92: YAGEO | R92: 100 | S92: 0.0003 | T92: 0.03 | U92: C137947 | V92: LCSC | AA92: 1
A93: 88 | C93: Resistor | D93: RES 1.1kΩ ±1% 62.5mW 0402 | E93: UNI-ROYAL | F93: 0402WGF1101TCE | I93: R5, R10 | J93: 2 | K93: 10 | L93: 20 | N93: SMD | P93: 0402WGF1101TCE | Q93: UNI-ROYAL | R93: 100 | S93: 0.0004 | T93: 0.04 | U93: C25860 | V93: LCSC | AA93: R5,R10
A94: 89 | C94: Resistor | D94: 62.5mW Thick Film Resistor 50V ±100ppm/℃ ±1% 10kΩ 0402 Chip Resistor - Surface Mount ROHS | E94: Yageo | F94: RC0402FR-0710KL | I94: R6, R13, R16, R17, R18, R25, R31, R33, R34, R35, R36, R39, R49, R100, R113, R115, R116, R120, R140, R142, R147, R155, R164, R165, R185, R186, R187, R191, R192, R193, R194, R195, R198, R199, R201, R202, R205, R234, R250, R257 | J94: 40 | K94: 10 | L94: 400 | N94: SMD | P94: RC0402FR-0710KL | Q94: YAGEO | R94: 400 | S94: 0.0004 | T94: 0.16 | U94: C60490 | V94: LCSC | AA94: R13, r16,R25,R18,R250,R33,R257,R6,R34,R35,R164,R165,R17,R49,
A95: 90 | C95: Resistor | D95: 51.1kΩ 62.5mW 50V Thick Film Resistor ±100ppm/℃ ±1% 0402 Chip Resistor - Surface Mount RoHS | E95: Yageo | F95: RC0402FR-0751K1L | I95: R7 | J95: 1 | K95: 10 | L95: 10 | N95: SMD | P95: RC0402FR-0751K1L | Q95: YAGEO | R95: 100 | S95: 0.0003 | T95: 0.03 | U95: C327339 | V95: LCSC | AA95: 1
A96: 91 | C96: Resistor | D96: 12kΩ 62.5mW 50V Thick Film Resistor ±100ppm/℃ ±1% 0402 Chip Resistor - Surface Mount RoHS | E96: Yageo | F96: RC0402FR-0712KL | I96: R8 | J96: 1 | K96: 10 | L96: 10 | N96: SMD | P96: RC0402FR-0712KL | Q96: YAGEO | R96: 100 | S96: 0.0004 | T96: 0.04 | U96: C114760 | V96: LCSC | AA96: 1
A97: 92 | C97: Resistor | D97: 62.5mW Thick Film Resistor 50V ±100ppm/℃ ±1% 1kΩ 0402 Chip Resistor - Surface Mount ROHS | E97: Yageo | F97: RC0402FR-071KL | I97: R9, R53, R78, R83, R86, R90, R94, R95, R102, R111, R112, R149, R156, R188, R189, R190, R196, R204, R233, R249, R256, R263 | J97: 22 | K97: 10 | L97: 220 | N97: SMD | P97: RC0402FR-071KL | Q97: YAGEO | R97: 300 | S97: 0.0004 | T97: 0.12 | U97: C106235 | V97: LCSC | AA97: R256,R9,R53,R78,R83,R86,R90,R102,R94,R95,249,111,112,233,263,149,156,188,196,204,R190,189
A98: 93 | C98: Resistor | D98: 62.5mW Thick Film Resistor 50V ±100ppm/℃ ±1% 105kΩ 0402 Chip Resistor - Surface Mount ROHS | E98: Yageo | F98: RC0402FR-07105KL | I98: R11 | J98: 1 | K98: 10 | L98: 10 | N98: SMD | P98: RC0402FR-07105KL | Q98: YAGEO | R98: 100 | S98: 0.0004 | T98: 0.04 | U98: C171671 | V98: LCSC | AA98: 1
A99: 94 | C99: Resistor | D99: 52.3kΩ ±1% 62.5mW 0402 Thick Film Resistor | E99: Yageo | F99: RC0402FR-0745K3L | I99: R12 | J99: 1 | K99: 10 | L99: 10 | N99: SMD | P99: RC0402FR-0745K3L | Q99: YAGEO | R99: 100 | S99: 0.0004 | T99: 0.04 | U99: C137977 | V99: LCSC | AA99: 1
A100: 95 | C100: Resistor | D100: 62.5mW Thick Film Resistor 50V ±100ppm/℃ ±1% 84.5kΩ 0402 Chip Resistor - Surface Mount ROHS | E100: Yageo | F100: RC0402FR-0784K5L | I100: R14 | J100: 1 | K100: 10 | L100: 10 | N100: SMD | P100: RC0402FR-0784K5L | Q100: YAGEO | R100: 100 | S100: 0.0001 | T100: 0.01 | U100: C185390 | V100: LCSC | AA100: 1
A101: 96 | C101: Resistor | D101: 62.5mW Thick Film Resistor 50V ±100ppm/℃ ±1% 100Ω 0402 Chip Resistor - Surface Mount ROHS | E101: Yageo | F101: RC0402FR-07100RL | I101: R15, R104, R105, R152 | J101: 4 | K101: 10 | L101: 40 | N101: SMD | P101: RC0402FR-07100RL | Q101: YAGEO | R101: 100 | S101: 0.0003 | T101: 0.03 | U101: C106232 | V101: LCSC | AA101: R15
A102: 97 | C102: Resistor | D102: 62.5mW Thick Film Resistor 50V ±100ppm/℃ ±1% 21.5kΩ 0402 Chip Resistor - Surface Mount ROHS | E102: Yageo | F102: RC0402FR-0721K5L | I102: R19 | J102: 1 | K102: 10 | L102: 10 | N102: SMD | P102: RC0402FR-0721K5L | Q102: YAGEO | R102: 100 | S102: 0.0004 | T102: 0.04 | U102: C185442 | V102: LCSC | AA102: 1
A103: 98 | C103: Resistor | D103: 62.5mW Thick Film Resistor 50V ±100ppm/℃ ±1% 1.91kΩ 0402 Chip Resistor - Surface Mount ROHS | E103: Yageo | F103: RC0402FR-071K91L | I103: R20 | J103: 1 | K103: 10 | L103: 10 | N103: SMD | P103: RC0402FR-071K91L | Q103: YAGEO | R103: 100 | S103: 0.0004 | T103: 0.04 | U103: C477598 | V103: LCSC | AA103: 1
A104: 99 | C104: Resistor | D104: 500mW Thin Film Resistor ±100ppm/℃ ±0.5% 15mΩ 1206 Chip Resistor - Surface Mount ROHS | E104: Yageo | F104: PE1206DRF7W0R015L | I104: R21 | J104: 1 | K104: 10 | L104: 10 | N104: SMD | P104: PE1206DRF7W0R015L | Q104: YAGEO | R104: 10 | S104: 0.1815 | T104: 1.82 | U104: C1714251 | V104: LCSC | AA104: 1
A105: 100 | C105: Resistor | D105: 62.5mW Thick Film Resistor 50V ±100ppm/℃ ±1% 34kΩ 0402 Chip Resistor - Surface Mount ROHS | E105: Yageo | F105: RC0402FR-0734KL | I105: R22 | J105: 1 | K105: 10 | L105: 10 | N105: SMD | P105: RC0402FR-0734KL | Q105: YAGEO | R105: 100 | S105: 0.0004 | T105: 0.04 | U105: C412507 | V105: LCSC | AA105: 1
A106: 101 | C106: Resistor | D106: 45.3kΩ ±1% 62.5mW 0402 Thick Film Resistor | E106: Yageo | F106: RC0402FR-0745K3L | I106: R23 | J106: 1 | K106: 10 | L106: 10 | N106: SMD | P106: RC0402FR-0745K3L | Q106: YAGEO | R106: 100 | S106: 0.0004 | T106: 0.04 | U106: C137977 | V106: LCSC | AA106: 1
A107: 102 | C107: Resistor | D107: RES SMD 10K OHM 1% 1/10W 0603 | E107: Yageo, Hottech | F107: RC0603FR-0710KL, RI0603L1002FT | I107: R24, R235 | J107: 2 | K107: 10 | L107: 20 | N107: SMD | P107: RC0603FR-0710KL | Q107: YAGEO | R107: 100 | S107: 0.0007 | T107: 0.07 | U107: C98220 | V107: LCSC | AA107: R24
A108: 103 | C108: Resistor | D108: 62.5mW 499kΩ 50V Thick Film Resistor ±100ppm/℃ ±1% 0402 Chip Resistor - Surface Mount RoHS | E108: Yageo | F108: RC0402FR-07499KL | I108: R26, R241 | J108: 2 | K108: 10 | L108: 20 | N108: SMD | P108: RC0402FR-07499KL | Q108: YAGEO | R108: 100 | S108: 0.0004 | T108: 0.04 | U108: C137971 | V108: LCSC | AA108: R26
A109: 104 | C109: Resistor | D109: 8.45kΩ ±1% 62.5mW 0402 Thick Film Resistor | E109: Yageo | F109: RC0402FR-078K45L | I109: R29 | J109: 1 | K109: 10 | L109: 10 | N109: SMD | P109: RC0402FR-078K45L | Q109: YAGEO | R109: 100 | S109: 0.0004 | T109: 0.04 | U109: C185388 | V109: LCSC
A110: 105 | C110: Resistor | D110: RES SMD 0 OHM JUMPER 1/10W 0603 | E110: YAGEO | F110: RC0603JR-070RL | I110: R30, R121, R168 | J110: 3 | K110: 10 | L110: 30 | N110: SMD | P110: - | Q110: - | R110: 100 | S110: - | T110: 0.14 | U110: - | V110: LCSC
A111: 106 | C111: Resistor | D111: 62.5mW Thick Film Resistor 50V ±100ppm/℃ ±1% 2.2kΩ 0402 Chip Resistor - Surface Mount ROHS | E111: Yageo | F111: RC0402FR-072K2L | I111: R32, R51, R52, R63, R71, R72, R76, R129, R130, R131, R208, R209, R210, R215, R216, R217, R255, R259 | J111: 18 | K111: 10 | L111: 180 | N111: SMD | P111: RC0402FR-072K2L | Q111: YAGEO | R111: 200 | S111: 0.0004 | T111: 0.08 | U111: C114762 | V111: LCSC | AA111: R255,R51,R52,R63,R72
A112: 107 | C112: Resistor | D112: 62.5mW Thick Film Resistors 50V ±100ppm/℃ ±1% 4.7kΩ 0402 Chip Resistor - Surface Mount ROHS | E112: Yageo | F112: RC0402FR-074K7L | I112: R37, R38, R45, R64, R73, R80, R96, R97, R103, R134, R135, R141, R144, R148, R206, R211, R213, R218, R220, R221, R244, R251, R254, R260 | J112: 24 | K112: 10 | L112: 240 | N112: SMD | P112: RC0402FR-074K7L | Q112: YAGEO | R112: 300 | S112: 0.0003 | T112: 0.09 | U112: C105871 | V112: LCSC | AA112: R254, R251,64,73,37,38,45,103,97,260,96,80,134,135,144,244,141,148,206,211,213,218,220,221
A113: 108 | C113: Resistor | D113: 50V Thick Film Resistors 62.5mW 22Ω ±1% ±100ppm/℃ 0402 Chip Resistor - Surface Mount ROHS | E113: Yageo | F113: RC0402FR-0722RL | I113: R41, R43, R47, R48, R60, R62, R69, R106, R107, R108, R109, R110, R124 | J113: 13 | K113: 10 | L113: 130 | N113: SMD | P113: RC0402FR-0722RL | Q113: YAGEO | R113: 200 | S113: 0.0003 | T113: 0.06 | U113: C114765 | V113: LCSC | AA113: R47,R48,R41,R43
A114: 109 | C114: Resistor | D114: 62.5mW 1MΩ 50V Thick Film Resistor ±100ppm/℃ ±1% 0402 Chip Resistor - Surface Mount RoHS | E114: Yageo | F114: RC0402FR-071ML | I114: R42 | J114: 1 | K114: 10 | L114: 10 | N114: SMD | P114: RC0402FR-071ML | Q114: YAGEO | R114: 100 | S114: 0.0003 | T114: 0.03 | U114: C138033 | V114: LCSC
A115: 110 | C115: Resistor | D115: 62.5mW Thick Film Resistor 50V ±100ppm/℃ ±1% 15kΩ 0402 Chip Resistor - Surface Mount ROHS | E115: Yageo | F115: RC0402FR-0715KL | I115: R50, R139 | J115: 2 | K115: 10 | L115: 20 | N115: SMD | P115: RC0402FR-0715KL | Q115: YAGEO | R115: 100 | S115: 0.0004 | T115: 0.04 | U115: C114761 | V115: LCSC
A116: 111 | C116: Resistor | D116: 62.5mW 4.02Ω 50V Thick Film Resistor ±1% ±200ppm/℃ 0402 Chip Resistor - Surface Mount RoHS | E116: Yageo | F116: RC0402FR-074R02L | I116: R54 | J116: 1 | K116: 10 | L116: 10 | N116: SMD | P116: RC0402FR-074R02L | Q116: YAGEO | R116: 100 | S116: 0.0012 | T116: 0.12 | U116: C327249 | V116: LCSC
A117: 112 | C117: Resistor | D117: 1.2kΩ ±1% 62.5mW 0402 Thick Film Resistor | E117: Yageo | F117: RC0402FR-071K2L | I117: R55 | J117: 1 | K117: 10 | L117: 10 | N117: SMD | P117: RC0402FR-071K2L | Q117: YAGEO | R117: 100 | S117: 0.0004 | T117: 0.04 | U117: C138040 | V117: LCSC
A118: 113 | C118: Resistor | D118: 62.5mW 0Ω 50V ±1% Thick Film Resistors 0402 Chip Resistor - Surface Mount ROHS | E118: Yageo | F118: RC0402FR-070RL | I118: R56, R57, R58, R59, R61, R65, R66, R67, R68, R70, R74, R75, R98, R99, R119, R138, R154, R157, R246, R247 | J118: 20 | K118: 10 | L118: 200 | N118: SMD | P118: RC0402FR-070RL | Q118: YAGEO | R118: 200 | S118: 0.0004 | T118: 0.08 | U118: C106231 | V118: LCSC | AA118: R74,R75,R246,R247
A119: 114 | C119: Resistor | D119: 62.5mW Thick Film Resistor 50V ±1% ±200ppm/℃ 10Ω 0402 Chip Resistor - Surface Mount ROHS | E119: Yageo | F119: RC0402FR-0710RL | I119: R77, R81, R82, R85, R87, R88, R91, R92, R151, R253 | J119: 10 | K119: 10 | L119: 100 | N119: SMD | P119: RC0402FR-0710RL | Q119: YAGEO | R119: 100 | S119: 0.0009 | T119: 0.09 | U119: C138066 | V119: LCSC | AA119: 77,82,87,91,81,85,88,92,253,151
A120: 115 | C120: Resistor | D120: 62.5mW Thick Film Resistor 50V ±100ppm/℃ ±1% 75Ω 0402 Chip Resistor - Surface Mount ROHS | E120: Yageo | F120: RC0402FR-0775RL | I120: R79, R84, R89, R93 | J120: 4 | K120: 10 | L120: 40 | N120: SMD | P120: RC0402FR-0775RL | Q120: YAGEO | R120: 100 | S120: 0.0004 | T120: 0.04 | U120: C114757 | V120: LCSC
A121: 116 | C121: Resistor | D121: 220Ω 62.5mW 50V Thick Film Resistor ±100ppm/℃ ±1% 0402 Chip Resistor - Surface Mount RoHS | E121: Yageo | F121: RC0402FR-07220RL | I121: R101 | J121: 1 | K121: 10 | L121: 10 | N121: SMD | P121: RC0402FR-07220RL | Q121: YAGEO | R121: 100 | S121: 0.0004 | T121: 0.04 | U121: C112291 | V121: LCSC
A122: 117 | C122: Resistor | D122: 62.5mW 2.2Ω 50V Thick Film Resistor ±1% ±200ppm/℃ 0402 Chip Resistor - Surface Mount RoHS | E122: YAGEO | F122: YAGEO RC0402FR-072R2L | I122: R122, R123, R125, R126 | J122: 4 | K122: 10 | L122: 40 | N122: SMD | P122: RC0402FR-072R2L | Q122: YAGEO | R122: 100 | S122: 0.0008 | T122: 0.08 | U122: C327251 | V122: LCSC
A123: 118 | C123: Resistor | D123: 62.5mW Thick Film Resistor 50V ±100ppm/℃ ±1% 47kΩ 0402 Chip Resistor - Surface Mount ROHS | E123: Yageo | F123: RC0402FR-0747KL | I123: R136, R137, R146, R150, R207, R212, R214, R219, R222, R223, R243, R245, R252, R258 | J123: 14 | K123: 10 | L123: 140 | N123: SMD | P123: RC0402FR-0747KL | Q123: YAGEO | R123: 200 | S123: 0.0003 | T123: 0.06 | U123: C93943 | V123: LCSC | AA123: R252
A124: 119 | C124: Resistor | D124: 62.5mW Thick Film Resistor 50V ±100ppm/℃ ±1% 470Ω 0402 Chip Resistor - Surface Mount ROHS | E124: Yageo | F124: RC0402FR-07470RL | I124: R163 | J124: 1 | K124: 10 | L124: 10 | N124: SMD | P124: RC0402FR-07470RL | Q124: YAGEO | R124: 100 | S124: 0.0002 | T124: 0.02 | U124: C114877 | V124: LCSC | AA124: 1
A125: 120 | C125: Resistor | D125: RES 0 OHM 1206 JUMPER 1/4W SMD | E125: YAGEO | F125: RC1206JR-070RL | I125: R166 | J125: 1 | K125: 10 | L125: 10 | N125: SMD | P125: - | Q125: - | R125: 100 | S125: - | T125: 0.45 | U125: - | V125: LCSC
A126: 121 | C126: Resistor | D126: 62.5mW Thick Film Resistor 50V ±100ppm/℃ ±1% 20kΩ 0402 Chip Resistor - Surface Mount ROHS | E126: Yageo | F126: RC0402FR-0720KL | I126: R171 | J126: 1 | K126: 10 | L126: 10 | N126: SMD | P126: RC0402FR-0720KL | Q126: YAGEO | R126: 100 | S126: 0.0003 | T126: 0.03 | U126: C93942 | V126: LCSC
A127: 122 | C127: Resistor | D127: 62.5mW Thick Film Resistor 50V ±100ppm/℃ ±1% 590kΩ 0402 Chip Resistor - Surface Mount ROHS | E127: Yageo | F127: AC0402FR-07590KL | I127: R200 | J127: 1 | K127: 10 | L127: 10 | N127: SMD | P127: AC0402FR-07590KL | Q127: YAGEO | R127: 100 | S127: 0.0006 | T127: 0.06 | U127: C227149 | V127: LCSC
A128: 123 | C128: Resistor | D128: 62.5mW Thick Film Resistor 50V ±100ppm/℃ ±1% 3.3kΩ 0402 Chip Resistor - Surface Mount ROHS | E128: Yageo | F128: RC0402FR-073K3L | I128: R203 | J128: 1 | K128: 10 | L128: 10 | N128: SMD | P128: RC0402FR-073K3L | Q128: YAGEO | R128: 100 | S128: 0.0003 | T128: 0.03 | U128: C137992 | V128: LCSC
A129: 124 | C129: Resistor | D129: 226kΩ 62.5mW 50V Thick Film Resistor ±100ppm/℃ ±1% 0402 Chip Resistor - Surface Mount RoHS | E129: Yageo | F129: AC0402FR-07226KL | I129: R237 | J129: 1 | K129: 10 | L129: 10 | N129: SMD | P129: AC0402FR-07226KL | Q129: YAGEO | R129: 100 | S129: 0.0001 | T129: 0.01 | U129: C226354 | V129: LCSC
A130: =ROW(A130)-ROW($A$5) -> 125 | C130: Resistor | D130: 57kΩ 62.5mW 50V Thick Film Resistor ±100ppm/℃ ±1% 0402 Chip Resistor - Surface Mount RoHS | E130: Yageo | F130: RC0402FR-07357KL | I130: R239 | J130: 1 | K130: 10 | L130: 10 | N130: SMD | P130: RC0402FR-07357KL | Q130: YAGEO | R130: 100 | S130: 0.0004 | T130: 0.04 | U130: C309545 | V130: LCSC
A131: 126 | C131: Switch | D131: Without bracket 50mA 3.5mm 100000 Times 260gf 12V 3mm 2mm Round Button Standing paste SPST SMD Tactile Switches ROHS | E131: XUNPU | F131: TS-1090S-AR02026 | I131: K1 | J131: 1 | K131: 10 | L131: 10 | N131: SMD | P131: TS-1090S-AR02026 | Q131: XUNPU | R131: 10 | S131: 0.0435 | T131: 0.44 | U131: C920225 | V131: LCSC | AA131: 1
A132: 127 | C132: Thermistor | D132: 10kΩ ±1% 310uA 3435K 100mW ±1% 0603 NTC Thermistors ROHS | E132: Nanjing Shiheng Elec | F132: CMFA 103F3435 | I132: R236 | J132: 1 | K132: 10 | L132: 10 | N132: SMD | P132: CMFA 103F3435 | Q132: Nanjing Shiheng Elec | R132: 20 | S132: 0.0217 | T132: 0.43 | U132: C2889048 | V132: LCSC
A133: 128 | C133: Transistor | D133: TRANS NPN 40V 0.2A SOT23 | E133: Micro Commercial Co | F133: MMBT3904-TP | I133: Q4, Q12, Q16, Q17, Q19, Q21, Q23, Q24, Q25, Q26, Q27, Q28, Q29, Q30, Q31, Q32, Q33, Q34, Q37, Q38, Q39, Q41 | J133: 22 | K133: 10 | L133: 220 | N133: SMD | P133: MMBT3904-TP | Q133: MCC | R133: 250 | S133: 0.0062 | T133: 1.55 | U133: C77991 | V133: LCSC | AA133: Q4,Q41,Q12,Q34,Q16,Q17, Q39, Q19,Q38,Q37,Q21,Q23,Q26,Q27,Q24,Q25,Q28,Q29,Q30,Q31,Q32,Q33
A134: 129 | C134: Connector | D134: 9P Male D-Sub Bend insert 2 3A -50℃~+105℃ Push-Pull D-Sub / VGA Connectors ROHS | E134: Ckmtw(Shenzhen Cankemeng) | F134: D-DMR009PM-D002 | I134: J4 | J134: 1 | K134: 10 | L134: 10 | N134: TH | P134: D-DMR009PM-D002 | Q134: Ckmtw | R134: 10 | S134: 0.2550 | T134: 2.55 | U134: C141880 | V134: LCSC | AA134: 1
A135: 130 | C135: Connector | D135: RJ45Receptacle 1 WithLED Plugin Ethernet Connectors / Modular Connectors (RJ45 RJ11) ROHS | E135: HANRUN(Zhongshan HanRun Elec) | F135: HR911105A | I135: J10 | J135: 1 | K135: 10 | L135: =J135*K135 -> 10 | N135: TH | P135: HR911105A | Q135: HANRUN(Zhongshan HanRun Elec) | R135: 10 | S135: 1.1989 | T135: 11.99 | U135: C12074 | V135: LCSC | AA135: 1
A136: 131 | C136: Connector | D136: JUMP-2.0-4PIN-FM-TH | F136: JUMP-2.0-4PIN-FM-TH | I136: J11 | J136: 1 | K136: 10 | L136: 10 | N136: TH | O136: để hở, không cần connector | P136: - | Q136: - | R136: - | S136: - | T136: - | U136: - | AA136: 1
A137: 132 | C137: Connector | D137: 2mm 2mm 2 12P 2x6P -40℃~+105℃ 4.3mm Top 2A Square Hole Through Hole Through Hole,P=2mm Headers, Receptacles, Female Sockets RoHS | E137: XFCN | F137: PM200V-12-12-H43 | I137: J14, J15, J16 | J137: 3 | K137: 10 | L137: 30 | N137: TH | P137: PM200V-12-12-H43 | Q137: XFCN | R137: 35 | S137: 0.0763 | T137: 2.67 | U137: C2925565 | V137: LCSC | AA137: J14, J15, J16
A138: 133 | C138: Connector | D138: XH Header Male Pin 0.098"(2.50mm) 2 Through Hole Wire To Board / Wire To Wire Connector RoHS | E138: BOOMELE(Boom Precision Elec) | F138: XH-2AW | I138: J17 | J138: 1 | K138: 10 | L138: 10 | N138: TH | P138: XH-2AW | Q138: HCTL | R138: 50 | S138: 0.0082 | T138: 0.41 | U138: C2908611 | V138: LCSC | AA138: 1
A139: 134 | C139: Connector | D139: Pin Header 4 1 Straight，180degrees 2.54mm Through Hole,P=2.54mm Pin Header & Female Header RoHS | E139: CJT(Changjiang Connectors) | F139: A2541WV-4P | I139: J24 | J139: 1 | K139: 10 | L139: 10 | N139: TH | P139: A2541WV-4P | Q139: CJT(Changjiang Connectors) | R139: 10 | S139: 0.0612 | T139: 0.61 | U139: C5346656 | V139: LCSC | AA139: 1
A140: 135 | C140: Connector | D140: XH Header Male Pin 0.098"(2.50mm) 2 Through Hole Wire To Board / Wire To Wire Connector RoHS | E140: BOOMELE(Boom Precision Elec) | F140: XH-2A | I140: J26 | J140: 1 | K140: 10 | L140: 10 | N140: TH | P140: XH-2A | Q140: BOOMELE(Boom Precision Elec) | R140: 100 | S140: 0.0054 | T140: 0.54 | U140: C20079 | V140: LCSC | AA140: 1
A141: 136 | C141: LED | D141: 60mA Red Lens 615nm~635nm -20℃~+85℃ Red 50° 150mW 1.8V~2.2V DIP-6-2.54mm LED Indication - Discrete ROHS | E141: XINGLIGHT | F141: XL-DZ304SURD/3 | I141: LED1, LED2 | J141: 2 | K141: 10 | L141: 20 | N141: TH | P141: XL-DZ304SURD/3 | Q141: XINGLIGHT | R141: 20 | S141: 0.2185 | T141: 4.37 | U141: C7545656 | V141: LCSC
A142: 137 | C142: Speaker | D142: 85dB Active Buzzer (Built-in Driving Circuit) Electromagnetic 3kHz Through Hole,D=9mm Buzzers ROHS | E142: Huaneng | F142: HNB09A05 | I142: BZ1 | J142: 1 | K142: 10 | L142: 10 | N142: TH | P142: HNB09A05 | Q142: Huaneng | R142: 10 | S142: 0.1934 | T142: 1.93 | U142: C96493 | V142: LCSC
A143: 138 | C143: Resistor | D143: 100mW 0Ω 75V Thick Film Resistor ±5% 0603 Chip Resistor - Surface Mount RoHS | E143: Yageo | F143: RC0603JR-070RL | I143: R28 | J143: 1 | K143: 10 | L143: 10 | N143: SMD | P143: RC0603JR-070RL | Q143: YAGEO | R143: 100 | S143: 0.0006 | T143: 0.06 | U143: C95177 | V143: LCSC | AA143: 1
C144: PCB | D144: PCB, 4 layer, 135.1 mm x 134.772 mm, PCB Thickness: 1,56mm, Material Type: FR-4 TG155 | E144: JLC | J144: 1 | K144: 10 | L144: 10 | N144: ASM | V144: JLCPBC
C145: Stencil | J145: 1 | K145: 1 | L145: 1 | N145: ASM
E146: TỔNG | T146: =SUM(T6:T145) -> 194.03

Sheet GX Board
D1: =UPPER("Bill of Materials") -> BILL OF MATERIALS | J1: Rev:
D2: Camera_box_gx | J2: Production QTY | R2: BOM Export Date: 04/05/26 16:31:42
A3: Customer: | C3: Aithings | D3: HW version: | E3: 5.0 | G3: Checked by: | J3: Date created: | R3: Website：https://www,lcsc,com/bom
A4: Board code: | C4: Camera_box_gx | D4: Prepared by: | E4: Ducdv | G4: Approved by: | J4: 26/03/2026
A5: STT | B5: Internal Code | C5: Category | D5: Description | E5: Manufacture | F5: Partnumber | G5: Manufacturer 2 | H5: Manufacturer's Part Number 2 | I5: Designator | J5: Quantity | K5: Board | L5: Total | M5: Unit | N5: Mounting type | O5: Note | P5: Order Qty. | Q5: Unit Price(USD) | R5: Ext,Price(USD) | S5: LCSC# | T5: Package
A6: =ROW(A6)-ROW($A$5) -> 1 | C6: Capacitor | D6: CAP CER 1UF 50V X5R 0603 | G6: Samsung Electro-Mechanics | H6: CL10A105KB8NNNC | I6: C1, C2, C3, C4 | J6: 4 | K6: 10 | L6: =J6*K6 -> 40 | N6: SMD | P6: 50 | Q6: - | R6: 0.39 | S6: - | T6: -
A7: 2 | C7: Connector | D7: 2x2P 4P Micro-Fit(MX 3,0) 3mm 2 2 3mm Direct Insert Plugin,P=3mm Wire To Board Connector ROHS | E7: BOOMELE(Boom Precision Elec) | F7: 3,0-2*2A | I7: J7, J9, J10, J11, J12, J13 | J7: 6 | K7: 10 | L7: =J7*K7 -> 60 | N7: SMD | P7: 60 | Q7: 0.0637 | R7: 3.82 | S7: C173283 | T7: -
A8: 3 | C8: Connector | D8: 2x6P 12P Gold Brass -40℃~+105℃ Pin Header Black 2mm 2mm 250V 3A 2 2mm SMD,P=2mm Headers, Male Pins ROHS | E8: XKB Connection | F8: X4621WRS-2x06I-C40D64 | G8: XKB Connection | H8: X4621WRS-2x03I-C40D64 | I8: J8, J14, J15 | J8: 3 | K8: 10 | L8: 30 | N8: SMD | P8: 30 | Q8: 0.2929 | R8: 8.79 | S8: C5242507 | T8: -
A9: 4 | C9: MOSFET | D9: SOT-23-3 MOSFETs P-Chanel ROHS | E9: TECH PUBLIC | F9: SI2333CDS | I9: Q1, Q2, Q5, Q6 | J9: 4 | K9: 10 | L9: 40 | N9: SMD | P9: 40 | Q9: 0.0711 | R9: 2.84 | S9: C5122040 | T9: -
A10: 5 | C10: Resistor | D10: 62,5mW Thick Film Resistor 50V ±100ppm/℃ ±1% 10kΩ 0402 Chip Resistor - Surface Mount ROHS | E10: Yageo | F10: RC0402FR-0710KL | I10: R1, R2, R7, R8 | J10: 4 | K10: 10 | L10: 40 | N10: SMD | P10: 100 | Q10: 0.0004 | R10: 0.04 | S10: C60490 | T10: -
A11: 6 | C11: Resistor | D11: 62,5mW Thick Film Resistors 50V ±100ppm/℃ ±1% 4,7kΩ 0402 Chip Resistor - Surface Mount ROHS | E11: Yageo | F11: RC0402FR-074K7L | I11: R3, R4, R9, R10 | J11: 4 | K11: 10 | L11: 40 | N11: SMD | P11: 100 | Q11: 0.0003 | R11: 0.03 | S11: C105871 | T11: -
A12: 7 | C12: Resistor | D12: 62,5mW Thick Film Resistor 50V ±100ppm/℃ ±1% 47kΩ 0402 Chip Resistor - Surface Mount ROHS | E12: Yageo | F12: RC0402FR-0747KL | I12: R5, R6, R11, R12 | J12: 4 | K12: 10 | L12: 40 | N12: SMD | P12: 100 | Q12: 0.0003 | R12: 0.03 | S12: C93943 | T12: -
A13: 8 | C13: Transistor | D13: TRANS NPN 60V 0,5A SOT23 | E13: ON Semiconductor | F13: MMBTA05LT1G | I13: Q3, Q4, Q7, Q8 | J13: 4 | K13: 10 | L13: 40 | N13: SMD | P13: 40 | Q13: 0.0276 | R13: 1.1 | S13: C152279 | T13: -
A14: 9 | C14: Connector | D14: Giắc GX12-2P 2 Chân (Đực) | E14: LKTC | F14: GX12-2P | I14: J1 | J14: 1 | K14: 10 | L14: 10 | N14: TH | P14: 10 | Q14: 1.2344 | R14: 12.34 | S14: C18203260 | T14: -
A15: 10 | C15: Connector | D15: Giắc GX12-4P 12mm 4 Chân (Đực) | E15: LKTC | F15: GX12-4P | I15: J2, J3, J5, J6 | J15: 4 | K15: 10 | L15: 40 | N15: TH | P15: 40 | Q15: 1.2998 | R15: 51.99 | S15: C18203262 | T15: -
A16: 11 | C16: PCB | D16: PCB, 2 layer, 113,94 mm* 23,58 mm, PCB Thickness: 1,6mm, Gerber_Camerabox-gx_2025-11-24_Y2413 | E16: JLC | F16: Y2413 | J16: 1 | K16: 10 | L16: 10 | N16: ASM | P16: - | Q16: - | R16: - | S16: - | T16: -
A17: 12 | C17: Stencil | J17: 1 | K17: 10 | L17: 10 | N17: ASM | P17: - | Q17: - | R17: - | S17: - | T17: -
D18: TỔNG | R18: =SUM(R6:R17) -> 81.37 | U18: USD

Sheet Vat_tu_phu
D1: =UPPER("Bill of Materials") -> BILL OF MATERIALS | J1: Rev:
D2: Camera_box_vật tư phụ | J2: Production QTY | P2: Nguồn khác
A3: Customer: | C3: Aithings | D3: HW version: | E3: 5.0 | G3: Checked by: | J3: Date created:
A4: Board code: | C4: Vật tư phụ | D4: Prepared by: | E4: Ducdv | G4: Approved by: | J4: 26/03/2026
A5: STT | B5: Internal Code | C5: Category | D5: Description | E5: Manufacture | F5: Partnumber | G5: Manufacturer 2 | H5: Manufacturer's Part Number 2 | I5: Designator | J5: Quantity/kit | K5: Board | L5: Total | M5: Unit | N5: Mounting type | O5: Note | P5: Order Qty. | Q5: Unit Price(VND) | R5: Ext,Price(VND) | S5: Nguồn
A6: =ROW(A6)-ROW($A$5) -> 1 | C6: Battery | D6: Pin Lithium | E6: Shoppe: AM Linh Kiện | J6: 1 | K6: 10 | L6: =J6*K6 -> 10 | N6: ASM | P6: 10 | Q6: 50000 | R6: =Q6*P6 -> 500000 | S6: https://shopee.vn/product/472471748/27209001295?gads_t_sig=gqRjZGVrxHCFomtpsTE0MjUxOnRzc19zZGtfa2V5omt20QABpGFsZ2_SAAAAZKNkZWvAomN0xEAAAAAMRoz0ZUjQw0QlRa--FjB0AKnHQPF7xv4DyGj9-GQwqn4zSdB6gztmw7ebmtsZs9FPJxlVqctc57WUE3IRqmNpcGhlcnRleHTEbgAAAAzOmWiKQhTD73oy3pMTD74YwXKLY4RmTmx_PECgQdqrSMko9Yj-LV50FldCrrJu5kPHupxjQruBx93-Rht53dteckDz3PQ9R9Ffxg1CnUg0Q4ADNZT7dVO_ek6XNMjV98hEJY0-rMFUz31c&gad_source=1&gad_campaignid=22506035722&gbraid=0AAAAADPpQE6U2mKiUDG5SpqIjApCVJLCa&gclid=Cj0KCQjwh-HPBhCIARIsAC0p3ccvrmVkDpuOBH77KWqu0VKbvpR57SbJKexkpAHzM0uqhK1QMQfLJz4aAmzGEALw_wcB
A7: 2 | C7: BOX | D7: Vỏ hộp | E7: Kadotech | F7: KDT-2526 | J7: 1 | K7: 10 | L7: 10 | N7: ASM | P7: - | R7: - | S7: Chưa tìm được nguồn mua phù hợp
A8: 3 | C8: Connector | D8: Cáp RF Đầu SMA Cái Nối 1,13Ipex Dài 10cm | E8: TGIC | F8: 1,13Ipex | J8: 2 | K8: 10 | L8: 20 | N8: ASM | P8: 20 | Q8: 11970 | R8: =Q8*P8 -> 239400 | S8: https://www.thegioiic.com/cap-rf-dau-sma-cai-noi-1-13ipex-dai-10cm
A9: 4 | C9: Product | D9: Miếng dẫn nhiệt thermal pad 5W/mK cho vga, chipset, ic dày 0,5, 1, 1,5, 2, 2,5, 3, 5mm ,kienstore358 | E9: Shopee kienstore358 | F9: 100x100x2mm | J9: 1 | K9: 5 | L9: 5 | N9: ASM | O9: Tản nhiệt SOM | P9: 3 | Q9: 46500 | R9: =Q9*P9 -> 139500 | S9: https://shopee.vn/product/16195091/3632842107?gads_t_sig=gqRjZGVrxHCFomtpsTE0MjUxOnRzc19zZGtfa2V5omt20QABpGFsZ2_SAAAAZKNkZWvAomN0xEAAAAAMRoz0ZUjQw0QlRa--FjB0AKnHQPF7xv4DyGj9-GQwqn4zSdB6gztmw7ebmtsZs9FPJxlVqctc57WUE3IRqmNpcGhlcnRleHTEagAAAAxLgiQivYZgW5foBPUBW12V8NHF09EY7qvmQOS38IA2e0CYjRekDsolqv8LMehX3QA7bJdvA0ZGP-sAncSvKGxwbMeXwQx2NGhEZXdYRNYdiWPk82HQPWPYfVW33Sbu0RV7orG3wGk&gad_source=1&gad_campaignid=22496000355&gbraid=0AAAAADPpQE6bBolz_JwwPGJCnXnPJllEZ&gclid=Cj0KCQjwh-HPBhCIARIsAC0p3ccJjJk5KYxemJ07EzcLDLZYWXACEOCjEViEVKBJMcyI0qedliT716YaAkxiEALw_wcB
A10: 5 | C10: Quạt | D10: Quạt Tản Nhiệt Mini 2510 – Quạt 2.5cm 25x25x10mm 5V / 12V DC – Gió Mạnh, Nhỏ Gọn, Ít Tiếng Ồn | E10: SHOPPE | F10: Mini Eibbkg 5V | J10: 1 | K10: 10 | L10: 10 | N10: ASM | P10: 10 | Q10: 35000 | R10: =Q10*P10 -> 350000 | S10: https://shopee.vn/Qu%EF%BF%BD%E1%BA%A1t-T%E1%BA%A3n-Nhi%E1%BB%87t-Mini-2510-%E2%80%93-Qu%E1%BA%A1t-2.5cm-25x25x10mm-5V-12V-DC-%E2%80%93-Gi%C3%B3-M%E1%BA%A1nh-Nh%E1%BB%8F-G%E1%BB%8Dn-%C3%8Dt-Ti%E1%BA%BFng-%E1%BB%92n-i.983524123.51300841631?extraParams=%7B%22display_model_id%22%3A445075556373%2C%22model_selection_logic%22%3A3%7D
A11: 6 | C11: Screw | D11: 10 cái M3 M4 M5 Bulong lục giác chìm đầu bằng đen thép mạ cấp bền 10,9 M3 M4 M5 | E11: Shopee Khôi Fasten | F11: M3x16mm | J11: 4 | K11: 10 | L11: 40 | N11: ASM | O11: Vít cho quạt | P11: 50 | Q11: =35000/50 -> 700 | R11: =Q11*P11 -> 35000 | S11: https://shopee.vn/50-c%C3%A1i-M3-M4-M5-Bulong-l%E1%BB%A5c-gi%C3%A1c-ch%C3%ACm-%C4%91%E1%BA%A7u-b%E1%BA%B1ng-%C4%91en-th%C3%A9p-m%E1%BA%A1-c%E1%BA%A5p-b%E1%BB%81n-10.9-i.39096692.12657476490
A12: 7 | C12: Screw | D12: Set 50, 20 Tán Dẹp Ecu Inox 304, thép thôi, thép mạ Cho ốc M3, M4, M5, M6, M8 Set 10 con đai ốc inox loại tốt | E12: Linh kiện điện tử SMD | F12: M3 Inox304 | J12: 4 | K12: 10 | L12: 40 | N12: ASM | O12: Bulong hàn cho quạt | P12: 50 | Q12: 1600 | R12: =Q12*P12 -> 80000 | S12: https://shopee.vn/product/134796651/18762050701?gads_t_sig=gqRjZGVrxHCFomtpsTE0MjUxOnRzc19zZGtfa2V5omt20QABpGFsZ2_SAAAAZKNkZWvAomN0xEAAAAAMRoz0ZUjQw0QlRa--FjB0AKnHQPF7xv4DyGj9-GQwqn4zSdB6gztmw7ebmtsZs9FPJxlVqctc57WUE3IRqmNpcGhlcnRleHTEbgAAAAyjVrs0gr8UnuryeetI3FX5Y16AmL_mbFh-BhzhNYSPCYip1w6WS6FoDljuqhTt2G5b1K_wR9XnDLR9WZzE5wC81X4yviPtEfAPixm0EH_uhDsW8r7vXboffenME-Yw3AOA9ysYlFQUXDIh&gad_source=1&gad_campaignid=22496000355&gbraid=0AAAAADPpQE6bBolz_JwwPGJCnXnPJllEZ&gclid=Cj0KCQjwh-HPBhCIARIsAC0p3cfnu3W1ldu4Fhpn7GV8qDwtxFhI1ARvfrlSmeh8cJ9jHKLEj-Gj6C4aAurrEALw_wcB
A13: 8 | C13: Screw | D13: M1,2 M1,4 M1,6 M2 M2,5 M3 M4 M5 M6 Thép Carbon Kẽm Đen CM Cross Phillips Siêu Mỏng Siêu Thấp Đầu Phẳng Vít Bu Lông | E13: Shopee huiruixin,vn | F13: M1,4x2,5mm | J13: 1 | K13: 10 | L13: 10 | N13: ASM | O13: Vít cho SOM | P13: 500 | R13: 52000 | S13: https://shopee.vn/M1.2-M1.4-M1.6-M2-M2.5-M3-M4-M5-M6-Th%C3%A9p-Carbon-K%E1%BA%BDm-%C4%90en-CM-Cross-Phillips-Si%C3%AAu-M%E1%BB%8Fng-Si%C3%AAu-Th%E1%BA%A5p-%C4%90%E1%BA%A7u-Ph%E1%BA%B3ng-V%C3%ADt-Bu-L%C3%B4ng-i.889466159.28555773016?extraParams=%7B%22display_model_id%22%3A246227873566%2C%22model_selection_logic%22%3A3%7D
A14: 9 | C14: Screw | D14: Bộ 10 Long đen/ vòng đệm các kích thước.M1.6 M2 M2.5 M3 M4 M6 M8 M10 M12 M14 | E14: Linh kiện điện tử SMD | F14: M3 | J14: 4 | K14: 10 | L14: 40 | N14: ASM | O14: Vênh cho quạt | P14: 40 | R14: 20000 | S14: https://shopee.vn/product/51517981/5019789812?gads_t_sig=gqRjZGVrxHCFomtpsTE0MjUxOnRzc19zZGtfa2V5omt20QABpGFsZ2_SAAAAZKNkZWvAomN0xEAAAAAMRoz0ZUjQw0QlRa--FjB0AKnHQPF7xv4DyGj9-GQwqn4zSdB6gztmw7ebmtsZs9FPJxlVqctc57WUE3IRqmNpcGhlcnRleHTEagAAAAyUnapXmxqrtAARC2f2cAyv2rWo4S6nSmJarRu2hF963X_eLnWICFmDLSksVdDtVkHlcvDes5vsZPttikVHhlfJAtwmGUBR9F0tm60UZ4rTVfZJAH2dWM_Bkpq7YSLuwi3vIB1wnUw&gad_source=1&gad_campaignid=22651004374&gbraid=0AAAAADPpQE6hA2b-beNyuq8-eNHxmjDX-&gclid=Cj0KCQjwh-HPBhCIARIsAC0p3ceXFYtQJC6HCGelD_ac7vc2P3AYvNRl1mFwCvvVQZLvehYiAS0tv8saAhFLEALw_wcB
A15: 10 | C15: Connector | D15: Giắc GX12-2P 2 Chân (Cái) Đấu Dây Test | E15: LKTC | F15: GX12-2P (Cái) | J15: 1 | K15: 10 | L15: 10 | N15: ASM | P15: 10 | Q15: 6200 | R15: =Q15*P15 -> 62000 | S15: https://www.thegioiic.com/gx12-2p-dau-noi-tron-cai-2-chan-thang-hang-3a-125v
D16: TỔNG | R16: =SUM(R6:R15) -> 1477900 | T16: VND

Sheet Chi phí
A1: STT | B1: Loại | C1: Số lượng | D1: Đơn giá | E1: Đơn vị | F1: Quy đổi(VND) | G1: Tổng tiền (VND) | H1: Ghi chú
A2: 1 | B2: RV1106 Board | C2: 1 | D2: =RV1106_Board!T146 -> 194.03 | E2: USD | F2: =D2*26337 -> 5110168.11 | G2: =F2+F3+F4 -> 8731109.8
A3: 2 | B3: Vat_tu_phu | C3: 1 | D3: =Vat_tu_phu!R16 -> 1477900 | E3: VND | F3: =D3 -> 1477900
A4: 3 | B4: GX_Board | C4: 1 | D4: ='GX Board'!$R$18 -> 81.37 | E4: USD | F4: =D4*26337 -> 2143041.69
